[Event "Titled Tuesday Blitz February 22 Early 2022"]
[White "Zavivaeva, Emilia"]
[Black "Galyas, Miklos"]
[WhiteFideId "34127531"]
[BlackFideId "707244"]
[WhiteElo "1685"]
[BlackElo "2409"]
[Result "0-1"]
[Round "03"]
[TimeControl "180+1"]
[Date "2022.02.22"]
[WhiteClock "0:00:20"]
[BlackClock "0:01:29"]

1. e4 {[%clk 0:02:56]}  d6 {[%clk 0:02:57]} 2. d4 {[%clk 0:02:50]}  g6 {[%clk 0:02:57]} 3. Nc3 {[%clk 0:02:51]}  c6 {[%clk 0:02:57]} 4. Be3 {[%clk 0:02:51]}  Bg7 {[%clk 0:02:56]} 5. Qd2 {[%clk 0:02:49]}  b5 {[%clk 0:02:56]} 6. f3 {[%clk 0:02:48]}  Nd7 {[%clk 0:02:54]} 7. g4 {[%clk 0:02:47]}  Nb6 {[%clk 0:02:54]} 8. h4 {[%clk 0:02:46]}  h5 {[%clk 0:02:54]} 9. g5 {[%clk 0:02:43]}  Qc7 {[%clk 0:02:48]} 10. d5 {[%clk 0:02:42]}  a6 {[%clk 0:02:46]} 11. Qf2 {[%clk 0:02:36]}  Rb8 {[%clk 0:02:41]} 12. Rd1 {[%clk 0:02:18]}  cxd5 {[%clk 0:02:39]} 13. Nxd5 {[%clk 0:01:49]}  Nxd5 {[%clk 0:02:39]} 14. exd5 {[%clk 0:01:41]}  Bxb2 {[%clk 0:02:34]} 15. Bd3 {[%clk 0:01:38]}  Bc3+ {[%clk 0:02:29]} 16. Bd2 {[%clk 0:01:38]}  e5 {[%clk 0:02:24]} 17. Ne2 {[%clk 0:01:36]}  Bxd2+ {[%clk 0:02:23]} 18. Rxd2 {[%clk 0:01:36]}  Ne7 {[%clk 0:02:23]} 19. Be4 {[%clk 0:01:32]}  Bf5 {[%clk 0:02:18]} 20. Ng3 {[%clk 0:01:29]}  Qb6 {[%clk 0:02:02]} 21. Bxf5 {[%clk 0:01:15]}  Qxf2+ {[%clk 0:02:01]} 22. Kxf2 {[%clk 0:01:14]}  Nxf5 {[%clk 0:01:56]} 23. Nxf5 {[%clk 0:01:11]}  gxf5 {[%clk 0:01:55]} 24. Rb1 {[%clk 0:01:07]}  Ke7 {[%clk 0:01:54]} 25. Ke2 {[%clk 0:01:05]}  Rhc8 {[%clk 0:01:54]} 26. Kd1 {[%clk 0:01:02]}  Rc4 {[%clk 0:01:54]} 27. Rh2 {[%clk 0:00:54]}  Rd4+ {[%clk 0:01:53]} 28. Kc1 {[%clk 0:00:47]}  Rxd5 {[%clk 0:01:53]} 29. a4 {[%clk 0:00:42]}  b4 {[%clk 0:01:47]} 30. Rb3 {[%clk 0:00:41]}  a5 {[%clk 0:01:46]} 31. Kb2 {[%clk 0:00:40]}  Rc8 {[%clk 0:01:46]} 32. Rg2 {[%clk 0:00:33]}  Rd4 {[%clk 0:01:40]} 33. Rh2 {[%clk 0:00:31]}  Rcc4 {[%clk 0:01:40]} 34. Rg2 {[%clk 0:00:28]}  Rxh4 {[%clk 0:01:37]} 35. g6 {[%clk 0:00:29]}  fxg6 {[%clk 0:01:36]} 36. Rxg6 {[%clk 0:00:29]}  Rh2 {[%clk 0:01:36]} 37. Rd3 {[%clk 0:00:22]}  Rhxc2+ {[%clk 0:01:29]} 38. Kb1 {[%clk 0:00:19]}  Rc1+ {[%clk 0:01:29]} 39. Kb2 {[%clk 0:00:19]}  R4c2+ {[%clk 0:01:29]} 40. Kb3 {[%clk 0:00:19]}  Rc3+ {[%clk 0:01:29]} 41. Rxc3 {[%clk 0:00:20]}  Rxc3+ {[%clk 0:01:29]} 42. Kb2 {[%clk 0:00:20]}  Rxf3 {[%clk 0:01:29]} 0-1


[Site "https://www.chess.com"]

[Event "Titled Tuesday Blitz February 22 Early 2022"]
[White "Zhu, Jiner"]
[Black "Svane, Rasmus"]
[WhiteFideId "8608059"]
[BlackFideId "4657101"]
[WhiteElo "2281"]
[BlackElo "2645"]
[Result "0-1"]
[Round "03"]
[TimeControl "180+1"]
[Date "2022.02.22"]
[WhiteClock "0:00:03"]
[BlackClock "0:00:11"]

1. e4 {[%clk 0:03:00]}  c6 {[%clk 0:02:59]} 2. d4 {[%clk 0:03:00]}  d5 {[%clk 0:03:00]} 3. e5 {[%clk 0:03:00]}  Bf5 {[%clk 0:02:59]} 4. h4 {[%clk 0:03:00]}  h5 {[%clk 0:02:59]} 5. Bd3 {[%clk 0:03:00]}  Bxd3 {[%clk 0:03:00]} 6. Qxd3 {[%clk 0:03:01]}  Qa5+ {[%clk 0:03:00]} 7. Nd2 {[%clk 0:02:59]}  e6 {[%clk 0:02:59]} 8. Nf3 {[%clk 0:02:57]}  Nh6 {[%clk 0:02:59]} 9. O-O {[%clk 0:02:56]}  Nf5 {[%clk 0:02:59]} 10. Nb3 {[%clk 0:02:54]}  Qa6 {[%clk 0:02:59]} 11. Qd1 {[%clk 0:02:53]}  b6 {[%clk 0:02:59]} 12. Bg5 {[%clk 0:02:40]}  c5 {[%clk 0:02:58]} 13. dxc5 {[%clk 0:02:39]}  Bxc5 {[%clk 0:02:48]} 14. Nxc5 {[%clk 0:02:36]}  bxc5 {[%clk 0:02:49]} 15. c3 {[%clk 0:02:35]}  Nc6 {[%clk 0:02:46]} 16. Re1 {[%clk 0:02:35]}  Rb8 {[%clk 0:02:28]} 17. b3 {[%clk 0:02:34]}  Qb5 {[%clk 0:02:24]} 18. Rc1 {[%clk 0:02:30]}  Qa5 {[%clk 0:02:20]} 19. Rc2 {[%clk 0:02:28]}  Qc7 {[%clk 0:02:17]} 20. Qe2 {[%clk 0:02:21]}  a5 {[%clk 0:02:15]} 21. Rd2 {[%clk 0:02:16]}  Qb6 {[%clk 0:02:11]} 22. Nh2 {[%clk 0:02:12]}  Ra8 {[%clk 0:02:00]} 23. Nf1 {[%clk 0:02:08]}  Qa6 {[%clk 0:01:55]} 24. Qf3 {[%clk 0:02:00]}  Qc8 {[%clk 0:01:53]} 25. Ng3 {[%clk 0:01:54]}  Nxg3 {[%clk 0:01:07]} 26. fxg3 {[%clk 0:01:55]}  Qc7 {[%clk 0:01:07]} 27. Rf2 {[%clk 0:01:51]}  Ra7 {[%clk 0:01:03]} 28. Qe2 {[%clk 0:01:48]}  Ne7 {[%clk 0:01:02]} 29. Qb5+ {[%clk 0:01:21]}  Kf8 {[%clk 0:01:01]} 30. Be3 {[%clk 0:00:57]}  Rb7 {[%clk 0:00:43]} 31. Qxc5 {[%clk 0:00:56]}  Qxc5 {[%clk 0:00:43]} 32. Bxc5 {[%clk 0:00:56]}  Ke8 {[%clk 0:00:44]} 33. Rf4 {[%clk 0:00:32]}  Nf5 {[%clk 0:00:38]} 34. Kf2 {[%clk 0:00:29]}  Kd7 {[%clk 0:00:37]} 35. b4 {[%clk 0:00:21]}  Rc8 {[%clk 0:00:37]} 36. a4 {[%clk 0:00:21]}  d4 {[%clk 0:00:30]} 37. Rd1 {[%clk 0:00:14]}  Ke8 {[%clk 0:00:30]} 38. Bxd4 {[%clk 0:00:12]}  axb4 {[%clk 0:00:30]} 39. cxb4 {[%clk 0:00:12]}  Rxb4 {[%clk 0:00:30]} 40. Be3 {[%clk 0:00:10]}  Rb3 {[%clk 0:00:23]} 41. Bd2 {[%clk 0:00:05]}  Rc2 {[%clk 0:00:22]} 42. Rf3 {[%clk 0:00:05]}  Rbb2 {[%clk 0:00:22]} 43. Rd3 {[%clk 0:00:06]}  f6 {[%clk 0:00:19]} 44. Kg1 {[%clk 0:00:05]}  fxe5 {[%clk 0:00:19]} 45. Bg5 {[%clk 0:00:05]}  Rxg2+ {[%clk 0:00:18]} 46. Kf1 {[%clk 0:00:04]}  Nxg3+ {[%clk 0:00:12]} 47. Rxg3 {[%clk 0:00:04]}  Rxg3 {[%clk 0:00:13]} 48. Rd8+ {[%clk 0:00:03]}  Kf7 {[%clk 0:00:13]} 49. Rd7+ {[%clk 0:00:04]}  Kg6 {[%clk 0:00:13]} 50. Re7 {[%clk 0:00:04]}  Rh3 {[%clk 0:00:12]} 51. Kg1 {[%clk 0:00:04]}  Ra3 {[%clk 0:00:11]} 52. Rxe6+ {[%clk 0:00:03]}  Kf5 {[%clk 0:00:11]} 0-1


[Site "https://www.chess.com"]

[Event "Titled Tuesday Blitz February 22 Early 2022"]
[White "Agibileg, Uurtsaikh"]
[Black "Timofeev, Artyom"]
[WhiteFideId "4901606"]
[BlackFideId "4140419"]
[WhiteElo "2205"]
[BlackElo "2583"]
[Result "0-1"]
[Round "04"]
[TimeControl "180+1"]
[Date "2022.02.22"]
[WhiteClock "0:00:05"]
[BlackClock "0:00:49"]

1. d4 {[%clk 0:03:00]}  d5 {[%clk 0:02:59]} 2. c4 {[%clk 0:03:01]}  e6 {[%clk 0:02:58]} 3. Nc3 {[%clk 0:03:01]}  c6 {[%clk 0:02:57]} 4. Nf3 {[%clk 0:03:00]}  dxc4 {[%clk 0:02:57]} 5. e3 {[%clk 0:02:58]}  b5 {[%clk 0:02:56]} 6. a4 {[%clk 0:02:58]}  Bb4 {[%clk 0:02:56]} 7. Bd2 {[%clk 0:02:55]}  a5 {[%clk 0:02:52]} 8. axb5 {[%clk 0:02:54]}  Bxc3 {[%clk 0:02:51]} 9. Bxc3 {[%clk 0:02:52]}  cxb5 {[%clk 0:02:52]} 10. b3 {[%clk 0:02:53]}  Bb7 {[%clk 0:02:52]} 11. bxc4 {[%clk 0:02:53]}  b4 {[%clk 0:02:52]} 12. Bb2 {[%clk 0:02:54]}  Nf6 {[%clk 0:02:52]} 13. Bd3 {[%clk 0:02:53]}  O-O {[%clk 0:02:52]} 14. O-O {[%clk 0:02:53]}  Nbd7 {[%clk 0:02:52]} 15. Nd2 {[%clk 0:02:53]}  Qc7 {[%clk 0:02:46]} 16. f3 {[%clk 0:02:52]}  Rfd8 {[%clk 0:02:42]} 17. Kh1 {[%clk 0:02:43]}  e5 {[%clk 0:02:24]} 18. Qc2 {[%clk 0:02:19]}  exd4 {[%clk 0:02:17]} 19. exd4 {[%clk 0:02:17]}  h6 {[%clk 0:02:16]} 20. Ne4 {[%clk 0:02:02]}  Rac8 {[%clk 0:02:12]} 21. Nxf6+ {[%clk 0:01:12]}  Nxf6 {[%clk 0:02:12]} 22. Qa4 {[%clk 0:00:53]}  Ra8 {[%clk 0:02:11]} 23. d5 {[%clk 0:00:52]}  Nd7 {[%clk 0:02:10]} 24. Qd1 {[%clk 0:00:39]}  Ba6 {[%clk 0:01:56]} 25. d6 {[%clk 0:00:23]}  Qc5 {[%clk 0:01:50]} 26. Be4 {[%clk 0:00:17]}  Bxc4 {[%clk 0:01:48]} 27. Rc1 {[%clk 0:00:16]}  Rac8 {[%clk 0:01:45]} 28. Bb7 {[%clk 0:00:06]}  Rb8 {[%clk 0:01:33]} 29. Ba6 {[%clk 0:00:06]}  Nb6 {[%clk 0:01:22]} 30. Bd4 {[%clk 0:00:06]}  Qxd6 {[%clk 0:01:10]} 31. Bxc4 {[%clk 0:00:06]}  Qxd4 {[%clk 0:01:05]} 32. Qb3 {[%clk 0:00:06]}  Nxc4 {[%clk 0:01:04]} 33. Rxc4 {[%clk 0:00:07]}  Qd3 {[%clk 0:01:04]} 34. Qxd3 {[%clk 0:00:07]}  Rxd3 {[%clk 0:01:03]} 35. h4 {[%clk 0:00:08]}  Rc3 {[%clk 0:00:59]} 36. Rxc3 {[%clk 0:00:07]}  bxc3 {[%clk 0:00:59]} 37. Rc1 {[%clk 0:00:07]}  Rb3 {[%clk 0:00:55]} 38. Rc2 {[%clk 0:00:08]}  a4 {[%clk 0:00:56]} 39. Kh2 {[%clk 0:00:07]}  a3 {[%clk 0:00:55]} 40. Ra2 {[%clk 0:00:07]}  g5 {[%clk 0:00:50]} 41. hxg5 {[%clk 0:00:07]}  hxg5 {[%clk 0:00:50]} 42. Kg3 {[%clk 0:00:08]}  f5 {[%clk 0:00:50]} 43. Rc2 {[%clk 0:00:04]}  Kf7 {[%clk 0:00:49]} 44. Kh3 {[%clk 0:00:03]}  Ke6 {[%clk 0:00:49]} 45. Kg3 {[%clk 0:00:02]}  Kd5 {[%clk 0:00:49]} 46. Ra2 {[%clk 0:00:02]}  Kc4 {[%clk 0:00:49]} 47. Kh3 {[%clk 0:00:02]}  Kb4 {[%clk 0:00:49]} 48. g4 {[%clk 0:00:02]}  fxg4+ {[%clk 0:00:48]} 49. Kxg4 {[%clk 0:00:03]}  Rb2 {[%clk 0:00:48]} 50. Ra1 {[%clk 0:00:03]}  a2 {[%clk 0:00:47]} 51. Kxg5 {[%clk 0:00:03]}  Kb3 {[%clk 0:00:48]} 52. f4 {[%clk 0:00:04]}  Rb1 {[%clk 0:00:48]} 53. Rxa2 {[%clk 0:00:05]}  Kxa2 {[%clk 0:00:49]} 54. f5 {[%clk 0:00:05]}  c2 {[%clk 0:00:49]} 0-1


[Site "https://www.chess.com"]

[Event "Titled Tuesday Blitz February 22 Early 2022"]
[White "Arabidze, Meri"]
[Black "Do Nascimento,Christian Almeida"]
[WhiteFideId "13604040"]
[BlackFideId "2143801"]
[WhiteElo "2329"]
[BlackElo "2108"]
[Result "1-0"]
[Round "04"]
[TimeControl "180+1"]
[Date "2022.02.22"]
[WhiteClock "0:00:13"]
[BlackClock "0:00:08"]

1. Nf3 {[%clk 0:01:34]}  Nf6 {[%clk 0:02:58]} 2. d4 {[%clk 0:01:35]}  d5 {[%clk 0:02:49]} 3. g3 {[%clk 0:01:36]}  g6 {[%clk 0:02:49]} 4. Bg2 {[%clk 0:01:36]}  Bg7 {[%clk 0:02:50]} 5. O-O {[%clk 0:01:37]}  O-O {[%clk 0:02:50]} 6. c4 {[%clk 0:01:38]}  c6 {[%clk 0:02:50]} 7. cxd5 {[%clk 0:01:36]}  cxd5 {[%clk 0:02:50]} 8. Ne5 {[%clk 0:01:37]}  Nc6 {[%clk 0:02:49]} 9. Nc3 {[%clk 0:01:37]}  Bf5 {[%clk 0:02:42]} 10. Bf4 {[%clk 0:01:36]}  Rc8 {[%clk 0:02:36]} 11. Rc1 {[%clk 0:01:36]}  Nh5 {[%clk 0:02:26]} 12. Nxd5 {[%clk 0:01:19]}  Nxf4 {[%clk 0:02:25]} 13. gxf4 {[%clk 0:01:19]}  Be6 {[%clk 0:02:15]} 14. Nxc6 {[%clk 0:01:15]}  bxc6 {[%clk 0:02:10]} 15. Nb4 {[%clk 0:01:15]}  Qd6 {[%clk 0:01:21]} 16. Nxc6 {[%clk 0:01:11]}  Bd7 {[%clk 0:01:01]} 17. d5 {[%clk 0:00:56]}  Bxb2 {[%clk 0:00:58]} 18. Rc2 {[%clk 0:00:53]}  Bf6 {[%clk 0:00:56]} 19. e3 {[%clk 0:00:53]}  Rc7 {[%clk 0:00:37]} 20. Qf3 {[%clk 0:00:48]}  e6 {[%clk 0:00:27]} 21. e4 {[%clk 0:00:45]}  exd5 {[%clk 0:00:27]} 22. e5 {[%clk 0:00:44]}  Qe6 {[%clk 0:00:21]} 23. Ne7+ {[%clk 0:00:41]}  Bxe7 {[%clk 0:00:19]} 24. Rxc7 {[%clk 0:00:41]}  Bc6 {[%clk 0:00:17]} 25. Bh3 {[%clk 0:00:37]}  f5 {[%clk 0:00:16]} 26. exf6 {[%clk 0:00:36]}  Qxf6 {[%clk 0:00:16]} 27. Re1 {[%clk 0:00:30]}  Bc5 {[%clk 0:00:16]} 28. Re6 {[%clk 0:00:24]}  Qa1+ {[%clk 0:00:14]} 29. Kg2 {[%clk 0:00:25]}  Ba8 {[%clk 0:00:12]} 30. Rxc5 {[%clk 0:00:19]}  d4 {[%clk 0:00:13]} 31. Rd5 {[%clk 0:00:19]}  Qxa2 {[%clk 0:00:13]} 32. Ree5 {[%clk 0:00:19]}  d3 {[%clk 0:00:12]} 33. Be6+ {[%clk 0:00:18]}  Kh8 {[%clk 0:00:11]} 34. Qxd3 {[%clk 0:00:18]}  Rd8 {[%clk 0:00:11]} 35. Qd4 {[%clk 0:00:13]}  h5 {[%clk 0:00:08]} 36. Rxh5# {[%clk 0:00:13]} 1-0


[Site "https://www.chess.com"]

[Event "Titled Tuesday Blitz February 22 Early 2022"]
[White "Aradhya, Garg"]
[Black "Guseva, Marina"]
[WhiteFideId "25006746"]
[BlackFideId "4149351"]
[WhiteElo "2169"]
[BlackElo "2232"]
[Result "1-0"]
[Round "04"]
[TimeControl "180+1"]
[Date "2022.02.22"]
[WhiteClock "0:01:05"]
[BlackClock "0:00:47"]

1. d4 {[%clk 0:03:00]}  d5 {[%clk 0:02:58]} 2. c4 {[%clk 0:03:01]}  c6 {[%clk 0:02:58]} 3. e3 {[%clk 0:03:00]}  Nf6 {[%clk 0:02:57]} 4. Nc3 {[%clk 0:03:00]}  a6 {[%clk 0:02:56]} 5. Nf3 {[%clk 0:03:00]}  b5 {[%clk 0:02:54]} 6. b3 {[%clk 0:03:00]}  Bg4 {[%clk 0:02:50]} 7. Qd2 {[%clk 0:03:00]}  Bxf3 {[%clk 0:02:43]} 8. gxf3 {[%clk 0:02:59]}  g6 {[%clk 0:02:36]} 9. Bb2 {[%clk 0:02:58]}  Bg7 {[%clk 0:02:32]} 10. Rc1 {[%clk 0:02:57]}  O-O {[%clk 0:02:31]} 11. f4 {[%clk 0:02:41]}  Nbd7 {[%clk 0:02:24]} 12. cxd5 {[%clk 0:02:40]}  cxd5 {[%clk 0:02:14]} 13. Bg2 {[%clk 0:02:38]}  e6 {[%clk 0:02:13]} 14. O-O {[%clk 0:02:38]}  Ng4 {[%clk 0:02:05]} 15. Ne2 {[%clk 0:02:34]}  Qh4 {[%clk 0:02:00]} 16. h3 {[%clk 0:02:33]}  Nh6 {[%clk 0:01:59]} 17. Rc6 {[%clk 0:02:17]}  Nf6 {[%clk 0:01:54]} 18. Ng3 {[%clk 0:02:17]}  Nf5 {[%clk 0:01:51]} 19. Nxf5 {[%clk 0:02:15]}  gxf5 {[%clk 0:01:49]} 20. Rfc1 {[%clk 0:02:12]}  Kh8 {[%clk 0:01:46]} 21. Qe1 {[%clk 0:01:59]}  Ne4 {[%clk 0:01:44]} 22. f3 {[%clk 0:01:59]}  Qxe1+ {[%clk 0:01:20]} 23. Rxe1 {[%clk 0:02:00]}  Nf6 {[%clk 0:01:20]} 24. Bf1 {[%clk 0:01:52]}  Rg8 {[%clk 0:01:17]} 25. Kf2 {[%clk 0:01:46]}  Ne8 {[%clk 0:01:08]} 26. Rec1 {[%clk 0:01:44]}  Bf6 {[%clk 0:01:08]} 27. Ba3 {[%clk 0:01:42]}  Bh4+ {[%clk 0:01:05]} 28. Ke2 {[%clk 0:01:41]}  Nf6 {[%clk 0:00:47]} 29. Be7 {[%clk 0:01:05]} 1-0


[Site "https://www.chess.com"]

[Event "Titled Tuesday Blitz February 22 Early 2022"]
[White "Ardila, Oscar Humberto"]
[Black "Ljukin, Sergei"]
[WhiteFideId "4404742"]
[BlackFideId "14102200"]
[WhiteElo "1898"]
[BlackElo "2312"]
[Result "0-1"]
[Round "04"]
[TimeControl "180+1"]
[Date "2022.02.22"]
[WhiteClock "0:00:02"]
[BlackClock "0:00:04"]

1. d4 {[%clk 0:03:00]}  d5 {[%clk 0:02:56]} 2. c4 {[%clk 0:03:00]}  c6 {[%clk 0:02:56]} 3. cxd5 {[%clk 0:03:00]}  cxd5 {[%clk 0:02:55]} 4. Nc3 {[%clk 0:03:00]}  Nf6 {[%clk 0:02:55]} 5. Nf3 {[%clk 0:03:00]}  Nc6 {[%clk 0:02:56]} 6. Bf4 {[%clk 0:02:59]}  Bf5 {[%clk 0:02:56]} 7. e3 {[%clk 0:02:59]}  e6 {[%clk 0:02:56]} 8. Bb5 {[%clk 0:02:56]}  Nd7 {[%clk 0:02:55]} 9. O-O {[%clk 0:02:53]}  Be7 {[%clk 0:02:54]} 10. Bxc6 {[%clk 0:02:49]}  bxc6 {[%clk 0:02:54]} 11. Qa4 {[%clk 0:02:50]}  Qb6 {[%clk 0:02:48]} 12. Rac1 {[%clk 0:02:43]}  O-O {[%clk 0:02:43]} 13. Ne2 {[%clk 0:02:16]}  Bd3 {[%clk 0:02:36]} 14. Qd1 {[%clk 0:02:11]}  Ba6 {[%clk 0:02:32]} 15. b3 {[%clk 0:02:06]}  c5 {[%clk 0:02:30]} 16. Re1 {[%clk 0:02:02]}  c4 {[%clk 0:02:26]} 17. Ng3 {[%clk 0:01:48]}  cxb3 {[%clk 0:02:22]} 18. Qxb3 {[%clk 0:01:47]}  Qxb3 {[%clk 0:02:11]} 19. axb3 {[%clk 0:01:46]}  Rfc8 {[%clk 0:02:02]} 20. Ra1 {[%clk 0:01:40]}  Bb5 {[%clk 0:02:00]} 21. Rec1 {[%clk 0:01:34]}  a6 {[%clk 0:01:58]} 22. h3 {[%clk 0:01:31]}  f6 {[%clk 0:01:56]} 23. Nf1 {[%clk 0:01:19]}  Bb4 {[%clk 0:01:50]} 24. Rxc8+ {[%clk 0:00:56]}  Rxc8 {[%clk 0:01:49]} 25. g4 {[%clk 0:00:42]}  g5 {[%clk 0:01:38]} 26. Bg3 {[%clk 0:00:41]}  Rc2 {[%clk 0:01:34]} 27. h4 {[%clk 0:00:39]}  h6 {[%clk 0:01:34]} 28. hxg5 {[%clk 0:00:38]}  hxg5 {[%clk 0:01:33]} 29. Rb1 {[%clk 0:00:36]}  Be2 {[%clk 0:01:26]} 30. Kg2 {[%clk 0:00:33]}  a5 {[%clk 0:01:22]} 31. Ng1 {[%clk 0:00:29]}  Bd3 {[%clk 0:01:19]} 32. Nh2 {[%clk 0:00:16]}  Rc3 {[%clk 0:01:07]} 33. Rb2 {[%clk 0:00:16]}  Ba3 {[%clk 0:01:05]} 34. Ra2 {[%clk 0:00:16]}  Rxb3 {[%clk 0:01:05]} 35. Nhf3 {[%clk 0:00:14]}  Bb4 {[%clk 0:01:04]} 36. Nh3 {[%clk 0:00:12]}  Bb1 {[%clk 0:00:57]} 37. Ra1 {[%clk 0:00:11]}  Be4 {[%clk 0:00:55]} 38. Bc7 {[%clk 0:00:09]}  f5 {[%clk 0:00:34]} 39. gxf5 {[%clk 0:00:08]}  g4 {[%clk 0:00:34]} 40. Ng5 {[%clk 0:00:06]}  gxf3+ {[%clk 0:00:32]} 41. Nxf3 {[%clk 0:00:07]}  exf5 {[%clk 0:00:32]} 42. Bxa5 {[%clk 0:00:07]}  Bxa5 {[%clk 0:00:29]} 43. Rxa5 {[%clk 0:00:06]}  Nf6 {[%clk 0:00:29]} 44. Ra6 {[%clk 0:00:05]}  Kf7 {[%clk 0:00:29]} 45. Kg3 {[%clk 0:00:05]}  Bxf3 {[%clk 0:00:29]} 46. Kxf3 {[%clk 0:00:05]}  Kg6 {[%clk 0:00:27]} 47. Kf4 {[%clk 0:00:05]}  Rb1 {[%clk 0:00:25]} 48. f3 {[%clk 0:00:05]}  Rh1 {[%clk 0:00:25]} 49. Ra8 {[%clk 0:00:04]}  Rh7 {[%clk 0:00:23]} 50. Ra6 {[%clk 0:00:03]}  Re7 {[%clk 0:00:23]} 51. Rb6 {[%clk 0:00:02]}  Re8 {[%clk 0:00:22]} 52. Rd6 {[%clk 0:00:02]}  Rh8 {[%clk 0:00:21]} 53. Ra6 {[%clk 0:00:03]}  Rh5 {[%clk 0:00:19]} 54. Ke5 {[%clk 0:00:02]}  f4+ {[%clk 0:00:16]} 55. Kxf4 {[%clk 0:00:03]}  Rf5+ {[%clk 0:00:15]} 56. Kg3 {[%clk 0:00:02]}  Kg5 {[%clk 0:00:16]} 57. f4+ {[%clk 0:00:03]}  Kg6 {[%clk 0:00:16]} 58. Kf3 {[%clk 0:00:03]}  Kf7 {[%clk 0:00:16]} 59. Kg3 {[%clk 0:00:03]}  Rh5 {[%clk 0:00:15]} 60. Kf3 {[%clk 0:00:04]}  Rh8 {[%clk 0:00:15]} 61. Ra7+ {[%clk 0:00:04]}  Kg6 {[%clk 0:00:14]} 62. Ra6 {[%clk 0:00:05]}  Re8 {[%clk 0:00:14]} 63. Rd6 {[%clk 0:00:05]}  Re7 {[%clk 0:00:14]} 64. Rb6 {[%clk 0:00:04]}  Rc7 {[%clk 0:00:14]} 65. Ra6 {[%clk 0:00:05]}  Rc3 {[%clk 0:00:14]} 66. Rd6 {[%clk 0:00:05]}  Kf5 {[%clk 0:00:14]} 67. Ra6 {[%clk 0:00:04]}  Rc2 {[%clk 0:00:14]} 68. Ra7 {[%clk 0:00:03]}  Ne4 {[%clk 0:00:14]} 69. Rf7+ {[%clk 0:00:03]}  Kg6 {[%clk 0:00:14]} 70. Rd7 {[%clk 0:00:03]}  Rf2+ {[%clk 0:00:13]} 71. Kg4 {[%clk 0:00:04]}  Re2 {[%clk 0:00:13]} 72. Rd6+ {[%clk 0:00:03]}  Nf6+ {[%clk 0:00:12]} 73. Kg3 {[%clk 0:00:02]}  Kf5 {[%clk 0:00:12]} 74. Kf3 {[%clk 0:00:02]}  Rh2 {[%clk 0:00:12]} 75. Rd8 {[%clk 0:00:01]}  Rh3+ {[%clk 0:00:12]} 76. Kf2 {[%clk 0:00:02]}  Ne4+ {[%clk 0:00:11]} 77. Kg2 {[%clk 0:00:02]}  Rg3+ {[%clk 0:00:11]} 78. Kh2 {[%clk 0:00:02]}  Rxe3 {[%clk 0:00:11]} 79. Rxd5+ {[%clk 0:00:03]}  Kxf4 {[%clk 0:00:11]} 80. Rd8 {[%clk 0:00:03]}  Rd3 {[%clk 0:00:10]} 81. Rf8+ {[%clk 0:00:04]}  Ke3 {[%clk 0:00:10]} 82. d5 {[%clk 0:00:04]}  Rxd5 {[%clk 0:00:10]} 83. Re8 {[%clk 0:00:03]}  Rg5 {[%clk 0:00:10]} 84. Kh3 {[%clk 0:00:03]}  Rf5 {[%clk 0:00:10]} 85. Rg8 {[%clk 0:00:03]}  Kf3 {[%clk 0:00:10]} 86. Rh8 {[%clk 0:00:02]}  Rf4 {[%clk 0:00:10]} 87. Kh2 {[%clk 0:00:02]}  Nf2 {[%clk 0:00:09]} 88. Kg1 {[%clk 0:00:01]}  Ng4 {[%clk 0:00:07]} 89. Kf1 {[%clk 0:00:02]}  Re4 {[%clk 0:00:06]} 90. Kg1 {[%clk 0:00:02]}  Kg3 {[%clk 0:00:06]} 91. Rf8 {[%clk 0:00:02]}  Nh2 {[%clk 0:00:05]} 92. Rf1 {[%clk 0:00:03]}  Nf3+ {[%clk 0:00:04]} 93. Kh1 {[%clk 0:00:02]}  Rh4# {[%clk 0:00:04]} 0-1


[Site "https://www.chess.com"]

[Event "Titled Tuesday Blitz February 22 Early 2022"]
[White "Assaubayeva, Bibisara"]
[Black "Sanchez Alvares, Kelvin Antonio"]
[WhiteFideId "13708694"]
[BlackFideId "3906680"]
[WhiteElo "2404"]
[BlackElo "2193"]
[Result "1-0"]
[Round "04"]
[TimeControl "180+1"]
[Date "2022.02.22"]
[WhiteClock "0:01:48"]
[BlackClock "0:01:21"]

1. d4 {[%clk 0:03:00]}  Nf6 {[%clk 0:02:58]} 2. c4 {[%clk 0:03:00]}  e6 {[%clk 0:02:58]} 3. Nf3 {[%clk 0:02:59]}  c5 {[%clk 0:02:58]} 4. d5 {[%clk 0:02:59]}  exd5 {[%clk 0:02:59]} 5. cxd5 {[%clk 0:02:59]}  d6 {[%clk 0:03:00]} 6. Nc3 {[%clk 0:02:59]}  g6 {[%clk 0:03:00]} 7. h3 {[%clk 0:03:00]}  a6 {[%clk 0:02:58]} 8. a4 {[%clk 0:02:59]}  Bg7 {[%clk 0:02:58]} 9. e4 {[%clk 0:02:59]}  O-O {[%clk 0:02:57]} 10. Bd3 {[%clk 0:03:00]}  Re8 {[%clk 0:02:57]} 11. O-O {[%clk 0:03:01]}  Nh5 {[%clk 0:02:57]} 12. Re1 {[%clk 0:02:58]}  Nd7 {[%clk 0:02:56]} 13. Bg5 {[%clk 0:02:50]}  Bf6 {[%clk 0:02:55]} 14. Bh6 {[%clk 0:02:45]}  Bg7 {[%clk 0:02:54]} 15. Bg5 {[%clk 0:02:44]}  Bf6 {[%clk 0:02:54]} 16. Be3 {[%clk 0:02:44]}  Ne5 {[%clk 0:02:49]} 17. Be2 {[%clk 0:02:43]}  Nxf3+ {[%clk 0:02:48]} 18. Bxf3 {[%clk 0:02:43]}  Ng7 {[%clk 0:02:49]} 19. Qd2 {[%clk 0:02:32]}  Bd7 {[%clk 0:02:48]} 20. a5 {[%clk 0:02:28]}  Rc8 {[%clk 0:02:39]} 21. Na4 {[%clk 0:02:24]}  Bxa4 {[%clk 0:02:37]} 22. Rxa4 {[%clk 0:02:25]}  Qd7 {[%clk 0:02:08]} 23. Qc2 {[%clk 0:02:17]}  Qb5 {[%clk 0:02:05]} 24. Be2 {[%clk 0:02:15]}  Qxb2 {[%clk 0:01:51]} 25. Qxb2 {[%clk 0:02:14]}  Bxb2 {[%clk 0:01:52]} 26. Rb1 {[%clk 0:02:15]}  Bd4 {[%clk 0:01:49]} 27. Rxb7 {[%clk 0:02:15]}  Bxe3 {[%clk 0:01:45]} 28. fxe3 {[%clk 0:02:14]}  c4 {[%clk 0:01:38]} 29. Rxc4 {[%clk 0:02:13]}  Rxc4 {[%clk 0:01:38]} 30. Bxc4 {[%clk 0:02:14]}  Rxe4 {[%clk 0:01:37]} 31. Bxa6 {[%clk 0:02:13]}  Nf5 {[%clk 0:01:37]} 32. Bb5 {[%clk 0:02:09]}  Rxe3 {[%clk 0:01:31]} 33. a6 {[%clk 0:02:09]}  Ra3 {[%clk 0:01:31]} 34. a7 {[%clk 0:02:09]}  Kg7 {[%clk 0:01:31]} 35. Be8 {[%clk 0:01:58]}  h5 {[%clk 0:01:28]} 36. Rxf7+ {[%clk 0:01:57]}  Kh6 {[%clk 0:01:28]} 37. Bc6 {[%clk 0:01:51]}  Ra1+ {[%clk 0:01:21]} 38. Kh2 {[%clk 0:01:48]} 1-0


[Site "https://www.chess.com"]